[Event "41st Amateur D7"]
[Site "ChessGUI4"]
[Date "2013.07.08"]
[Round "20.2"]
[White "Butcher 1.64 64-bit"]
[Black "Waxman 2011"]
[Result "1-0"]
[BlackElo "2256"]
[ECO "E54"]
[EventDate "2013.??.??"]
[TimeControl "40/1500:40/1500:40/1500"]
[WhiteElo "2355"]

{ i5 Quad } 1.d4 { [%eval 0,1] [%emt 0:00:00] } 1...Nf6
{ [%eval 0,1] [%emt 0:00:00] } 2.c4 { [%eval 0,1] [%emt 0:00:00] } 2...e6
{ [%eval 0,1] [%emt 0:00:00] } 3.Nc3 { [%eval 0,1] [%emt 0:00:00] } 3...Bb4
{ [%eval 0,1] [%emt 0:00:00] } 4.e3 { [%eval 0,1] [%emt 0:00:00] } 4...O-O
{ [%eval 0,1] [%emt 0:00:00] } 5.Bd3 { [%eval 0,1] [%emt 0: 00:00] } 5...c5
{ [%eval 0,1] [%emt 0:00:00] } 6.Nf3 { [%eval 0,1] [%emt 0:00:00] } 6...d5
{ [%eval 0,1] [%emt 0:00:00] } 7.O-O { [%eval 0,1] [%emt 0:00:00] } 7...cxd4
{ [%eval 0,1] [%emt 0:00:00] } 8.exd4 { [%eval 0,1] [%emt 0:00:00] } 8...dxc4
{ [%eval 0,1] [%emt 0:00:00] } 9.Bxc4 { [%eval 34,11] [%emt 0:01:03] }
9...Nc6 { [%eval -26,12] [%emt 0:00:46] (Nc6) } 10.a3
{ [%eval 26,11] [%emt 0:01:00] (a3) } 10...Be7
{ [%eval -26,12] [%emt 0:00:46] (Be7) } 11.Bg5
{ [%eval 18,11] [%emt 0:00:59] (Re1) } 11...Bd7
{ [%eval -23,12] [%emt 0:00:47] (h6) } 12.Rc1
{ [%eval 18,11] [%emt 0:00:58] (Rc1) } 12...Rc8
{ [%eval -24,12] [%emt 0:00:45] (Rc8) } 13.Re1
{ [%eval 24,11] [%emt 0:01:04] (Re1) } 13...h6
{ [%eval -41,12] [%emt 0:01:09] (h6) } 14.Bf4
{ [%eval 22,11] [%emt 0:01:03] (Bf4) } 14...Qb6
{ [%eval -24,12] [%emt 0:01:42] (Qb6) } 15.d5
{ [%eval 85,10] [%emt 0:01:02] (Bd3) } 15...exd5
{ [%eval -26,11] [%emt 0:01:23] (Na5) } 16.Nxd5
{ [%eval 42,10] [%emt 0:01:00] (Nxd5) } 16...Nxd5
{ [%eval -63,12] [%emt 0:00: 53] (Nxd5) } 17.Qxd5
{ [%eval 55,10] [%emt 0:00:59] (Bxd5) } 17...Be6
{ [%eval -43,12] [%emt 0:01:12] (Be6) } 18.Rxe6
{ [%eval 243,11] [%emt 0:00:58] (Rxe6) } 18...fxe6
{ [%eval -136,11] [%emt 0:00:48] (Rcd8) } 19.Qxe6+
{ [%eval 252,12] [%emt 0:00:57] (Qxe6) } 19...Kh8
{ [%eval -175,12] [%emt 0:00:37] (Kh8) } 20.Bxh6
{ [%eval 255,11] [%emt 0:00:56] (Bxh6) } 20...Na5
{ [%eval -217,12] [%emt 0:01:02] (Na5) } 21.Bxg7+
{ [%eval 446,10] [%emt 0:00:47] (Bxg7) } 21...Kxg7
{ [%eval -345,12] [%emt 0:00:11] (Kxg7) } 22.Qxe7+
{ [%eval 452,11] [%emt 0:00:47] (Qxe7) } 22...Kh8
{ [%eval -401,12] [%emt 0:00:33] (Kh8) } 23.Bf1
{ [%eval 604,11] [%emt 0:00:46] (Bf1) } 23...Qh6
{ [%eval -442,12] [%emt 0:00:32] (Rce8) } 24.Rxc8
{ [%eval 632,12] [%emt 0:00:46] (Rxc8) } 24...Rxc8
{ [%eval -443,12] [%emt 0:00:14] (Rxc8) } 25.Qe5+
{ [%eval 666,12] [%emt 0:00:45] (Qe5) } 25...Qg7
{ [%eval -480,13] [%emt 0:00:35] (Qg7) } 26.Qxa5
{ [%eval 660,12] [%emt 0:00:44] (Qh5) } 26...Rc1
{ [%eval -469,13] [%emt 0:01:09] (Rc1) } 27.Qh5+
{ [%eval 658,11] [%emt 0:00:44] (Qd8) } 27...Qh7
{ [%eval -520,14] [%emt 0:00: 36] (Qh7) } 28.Qe5+
{ [%eval 676,12] [%emt 0:00:43] (Qe8) } 1-0

[Event "41st Amateur D7"]
[Site "ChessGUI4"]
[Date "2013.07.08"]
[Round "20.3"]
[White "Tigran 2.3 64-bit"]
[Black "ProChess 1.02AD"]
[Result "1-0"]
[BlackElo "2244"]
[ECO "E05"]
[EventDate "2013.??.??"]
[TimeControl "40/1500:40/1500:40/1500"]
[WhiteElo "2289"]

{ i5 Quad } 1.Nf3 { [%eval 0,1] [%emt 0:00:00] } 1...Nf6
{ [%eval 0,1] [%emt 0:00:00] } 2.c4 { [%eval 0,1] [%emt 0:00:00] } 2...e6
{ [%eval 0,1] [%emt 0:00:00] } 3.g3 { [%eval 0,1] [%emt 0:00:00] } 3...d5
{ [%eval 0,1] [%emt 0:00:00] } 4.d4 { [%eval 0,1] [%emt 0:00:00] } 4...Be7
{ [%eval 0,1] [%emt 0:00:00] } 5.Bg2 { [%eval 0,1] [%emt 0: 00:00] } 5...O-O
{ [%eval 0,1] [%emt 0:00:00] } 6.O-O { [%eval 0,1] [%emt 0:00:00] } 6...dxc4
{ [%eval 0,1] [%emt 0:00:00] } 7.Qc2 { [%eval 0,1] [%emt 0:00:00] } 7...a6
{ [%eval 0,1] [%emt 0:00:00] } 8.Qxc4 { [%eval 0,1] [%emt 0:00:00] } 8...b5
{ [%eval 0, 1] [%emt 0:00:00] } 9.Qc2 { [%eval 18,14] [%emt 0:00:42] }
9...Bb7 { [%eval 1,13] [%emt 0:01:26] (Bb7) } 10.a3
{ [%eval 18,14] [%emt 0:00:42] (Bf4) } 10...c5
{ [%eval 10,12] [%emt 0:02:11] (c5) } 11.dxc5
{ [%eval 16,14] [%emt 0:00:39] (dxc5) } 11...Be4
{ [%eval 1,13] [%emt 0:00:43] (Be4) } 12.Qd1
{ [%eval 19,13] [%emt 0:00:42] (Qd1) } 12...Bxc5
{ [%eval -6,12] [%emt 0:00:37] (Bxc5) } 13.Nc3
{ [%eval 18,13] [%emt 0:00: 43] (Nc3) } 13...Bb7
{ [%eval 0,11] [%emt 0:00:39] (Bb7) } 14.b4
{ [%eval 17,12] [%emt 0:00:43] (Qxd8) } 14...Bb6
{ [%eval 3,12] [%emt 0:01:00] (Bb6) } 15.Bf4
{ [%eval 16,12] [%emt 0:00:43] (Bf4) } 15...Nd5
{ [%eval 6,11] [%emt 0:00:58] (Nbd7) } 16.Nxd5
{ [%eval 44,13] [%emt 0:00:43] (Qc2) } 16...exd5
{ [%eval 9,11] [%emt 0:00:36] (Bxd5) } 17.Qd3
{ [%eval 65,12] [%emt 0:00:40] (Qd3) } 17...Nd7
{ [%eval 10,11] [%emt 0:00:48] (Nd7) } 18.e3
{ [%eval 57,12] [%emt 0:00:44] (e3) } 18...Re8
{ [%eval 10,11] [%emt 0: 00:32] (Re8) } 19.a4
{ [%eval 48,12] [%emt 0:00:44] (Rad1) } 19...bxa4
{ [%eval 22,12] [%emt 0:00:56] (bxa4) } 20.Rxa4
{ [%eval 40,11] [%emt 0:00:44] (Rxa4) } 20...h6
{ [%eval 21,11] [%emt 0:00:57] (Nf8) } 21.h4
{ [%eval 5,11] [%emt 0:00:44] (h4) } 21...Qf6
{ [%eval 20,10] [%emt 0:00:23] (Qe7) } 22.Ra3
{ [%eval 18,11] [%emt 0:00:44] (h5) } 22...Qe7
{ [%eval 20,11] [%emt 0:01:11] (Qe7) } 23.Rb1
{ [%eval 8,11] [%emt 0: 00:45] (Rb1) } 23...Rad8
{ [%eval 20,11] [%emt 0:00:22] (Nf6) } 24.Rc3
{ [%eval 26,11] [%emt 0:00:38] (Rc3) } 24...Nf6
{ [%eval 17,12] [%emt 0:00:38] (Rc8) } 25.Nd4
{ [%eval 20,13] [%emt 0:00:46] (b5) } 25...Ne4
{ [%eval 15,11] [%emt 0:00:29] (Qd7) } 26.Nc6
{ [%eval 73,13] [%emt 0:00:46] (Rc6) } 26...Bxc6
{ [%eval -3,13] [%emt 0:00:46] (Qf6) } 27.Rxc6
{ [%eval 114,13] [%emt 0:00:46] (Rxc6) } 27...Qa7
{ [%eval -7,12] [%emt 0:00:58] (Qb7) } 28.h5
{ [%eval 128,12] [%emt 0:00:47] (b5) } 28...Qb7
{ [%eval -10,11] [%emt 0:00:44] (Qb7) } 29.b5
{ [%eval 114,13] [%emt 0:00:47] (Rbc1) } 29...a5
{ [%eval -12,10] [%emt 0:00:16] (a5) } 30.Qc2
{ [%eval 114,12] [%emt 0:00:44] (Qc2) } 30...Qa7
{ [%eval -30,10] [%emt 0:00:18] (Qa7) } 31.Rd1
{ [%eval 96,12] [%emt 0:00:48] (Rd1) } 31...Nf6
{ [%eval -20,10] [%emt 0:00:21] (a4) } 32.Qf5
{ [%eval 157, 12] [%emt 0:00:48] (Bf3) } 32...d4
{ [%eval -97,10] [%emt 0:00:11] (d4) } 33.Rxf6
{ [%eval 206,14] [%emt 0:00:49] (Rxf6) } 33...dxe3
{ [%eval -122,11] [%emt 0:00:16] (dxe3) } 34.Rxd8
{ [%eval 221,13] [%emt 0:00:44] (Rfd6) } 34...Rxd8
{ [%eval -130,11] [%emt 0:00:13] (Rxd8) } 35.Rd6
{ [%eval 193,13] [%emt 0:00:46] (Rd6) } 35...exf2+
{ [%eval -178,12] [%emt 0:00:13] (exf2) } 36.Kh2
{ [%eval 264,13] [%emt 0:00:53] (Kh2) } 36...a4
{ [%eval -199,11] [%emt 0:00:14] (a4) } 37.Be5
{ [%eval 293,13] [%emt 0:00:54] (Rxd8) } 37...Rxd6
{ [%eval -235,11] [%emt 0:02:09] (Rxd6) } 38.Bxd6
{ [%eval 569,15] [%emt 0:00:57] (Bxd6) } 38...Bd4
{ [%eval -317,11] [%emt 0:00:08] (Bd8) } 39.b6
{ [%eval 1103,15] [%emt 0:00:59] (Be4) } 39...f1=Q
{ [%eval -1061,13] [%emt 0: 00:20] (f1=Q) } 40.Qc8+
{ [%eval 1333,14] [%emt 0:01:05] (Qc8) } 40...Kh7
{ [%eval -265,1] [%emt 0:00:00] (Kh7) } 41.bxa7
{ [%eval 1361,13] [%emt 0:00:34] (bxa7) } 41...Bg1+
{ [%eval -1237,14] [%emt 0:00:51] (Qg1) } 42.Kh3
{ [%eval 1508,16] [%emt 0: 00:34] (Kh3) } 42...Qxg2+
{ [%eval 31750,15] [%emt 0:02:24] (Qxg2) } 43.Kxg2
{ [%eval 1702,16] [%emt 0:00:34] (Kxg2) } 43...Bxa7
{ [%eval 31754,15] [%emt 0:00:37] (Bxa7) } 44.Qg4
{ [%eval 2112,16] [%emt 0:00:34] (Qb7) } 44...Kg8
{ [%eval 31748,14] [%emt 0: 00:47] (Kg8) } 1-0

[Event "41st Amateur D7"]
[Site "ChessGUI4"]
[Date "2013.07.08"]
[Round "20.4"]
[White "FireFly 2.6.0 64-bit"]
[Black "MadChess 1.2"]
[Result "1-0"]
[BlackElo "2200"]
[ECO "D12"]
[EventDate "2013.??.??"]
[TimeControl "40/1500:40/1500:40/1500"]
[WhiteElo "2258"]

{ i5 Quad } 1.d4 { [%eval 0,1] [%emt 0:00:00] } 1...d5
{ [%eval 0,1] [%emt 0:00:00] } 2.c4 { [%eval 0,1] [%emt 0:00:00] } 2...c6
{ [%eval 0,1] [%emt 0:00:00] } 3.Nf3 { [%eval 0,1] [%emt 0:00:00] } 3...Nf6
{ [%eval 0,1] [%emt 0:00:00] } 4.e3 { [%eval 0,1] [%emt 0:00:00] } 4...Bf5
{ [%eval 0,1] [%emt 0:00:00] } 5.Nc3 { [%eval 0,1] [%emt 0: 00:00] } 5...e6
{ [%eval 0,1] [%emt 0:00:00] } 6.Nh4 { [%eval 0,1] [%emt 0:00:00] } 6...Bg6
{ [%eval 0,1] [%emt 0:00:00] } 7.Nxg6 { [%eval 0,1] [%emt 0:00:00] } 7...hxg6
{ [%eval 0,1] [%emt 0:00:00] } 8.g3 { [%eval 0,1] [%emt 0:00:00] } 8...Nbd7
{ [%eval 0, 1] [%emt 0:00:00] } 9.Qb3 { [%eval -2,12] [%emt 0:00:57] }
9...Qb6 { [%eval -27,10] [%emt 0:00:37] (Qc7) } 10.Be2
{ [%eval 20,12] [%emt 0:00:56] (Bd2) } 10...Bb4
{ [%eval -7,11] [%emt 0:00:56] (O-O-O) } 11.O-O
{ [%eval 47,12] [%emt 0:00:56] (f3) } 11...O-O-O
{ [%eval -29,10] [%emt 0:00:29] (Ba5) } 12.c5
{ [%eval 66,13] [%emt 0:00:55] (cxd5) } 12...Qa5
{ [%eval -39,12] [%emt 0:00:32] (Qa5) } 13.Bd2
{ [%eval 54, 12] [%emt 0:00:54] (Bd2) } 13...Bxc3
{ [%eval -14,11] [%emt 0:00:25] (Kb8) } 14.Bxc3
{ [%eval 85,13] [%emt 0:00:53] (Bxc3) } 14...Qc7
{ [%eval -47,12] [%emt 0:00:36] (Qc7) } 15.Qa3
{ [%eval 83,13] [%emt 0:00:52] (Qa3) } 15...Kb8
{ [%eval -32,12] [%emt 0:00:24] (Qb8) } 16.Ba5
{ [%eval 113,13] [%emt 0:00:51] (f3) } 16...b6
{ [%eval -58,13] [%emt 0: 00:39] (b6) } 17.Bb4
{ [%eval 98,12] [%emt 0:00:51] (Bb4) } 17...Ne4
{ [%eval -58,12] [%emt 0:00:18] (Ne4) } 18.cxb6
{ [%eval 96,12] [%emt 0:00:50] (Rac1) } 18...axb6
{ [%eval -30,12] [%emt 0:00:28] (axb6) } 19.Rfc1
{ [%eval 100,11] [%emt 0:00:41] (Rfc1) } 19...c5
{ [%eval -30,11] [%emt 0:00:16] (Rh3) } 20.dxc5
{ [%eval 120,12] [%emt 0:00:40] (dxc5) } 20...Ndxc5
{ [%eval -43,11] [%emt 0:00:25] (Ndxc5) } 21.Bxc5
{ [%eval 101,11] [%emt 0:00:40] (Be1) } 21...bxc5
{ [%eval -11,11] [%emt 0:00:46] (bxc5) } 22.Bf3
{ [%eval 120,11] [%emt 0:00:40] (Qb3) } 22...Ng5
{ [%eval -62,13] [%emt 0:00: 43] (Ng5) } 23.Bg2
{ [%eval 97,11] [%emt 0:00:39] (Bg2) } 23...Rc8
{ [%eval -94,13] [%emt 0:00:23] (Rc8) } 24.Rc3
{ [%eval 140,12] [%emt 0:00:39] (h4) } 24...Qa7
{ [%eval -97,14] [%emt 0:00:49] (Qa7) } 25.Qb3+
{ [%eval 169,12] [%emt 0:00:38] (Qb3) } 25...Kc7
{ [%eval -115,14] [%emt 0:04:01] (Qb7) } 26.h4
{ [%eval 162,12] [%emt 0:00:38] (h4) } 26...Nh7
{ [%eval -83,13] [%emt 0:03:12] (Nh7) } 27.Bxd5
{ [%eval 166, 11] [%emt 0:00:37] (Qc2) } 27...Rb8
{ [%eval -145,13] [%emt 0:00:59] (Rb8) } 28.Qc2
{ [%eval 220,11] [%emt 0:00:29] (Qc4) } 28...exd5
{ [%eval -89,12] [%emt 0:00:20] (exd5) } 29.Rxc5+
{ [%eval 202,11] [%emt 0:00:29] (Rxc5) } 29...Kd8
{ [%eval -140,12] [%emt 0:00:55] (Kd8) } 30.Rc1
{ [%eval 302,11] [%emt 0:00:29] (Rxd5) } 30...Qb6
{ [%eval -190,13] [%emt 0:00:30] (Qb6) } 31.Rc6
{ [%eval 426,12] [%emt 0:00:19] (Rc6) } 31...Qxb2
{ [%eval -400,12] [%emt 0:00:19] (Qxb2) } 32.Rc8+
{ [%eval 740,13] [%emt 0: 00:42] (Rc8) } 32...Rxc8
{ [%eval -452,16] [%emt 0:00:22] (Rxc8) } 33.Qxc8+
{ [%eval 740,12] [%emt 0:00:18] (Qxc8) } 33...Ke7
{ [%eval -452,16] [%emt 0:00:00] (Ke7) } 34.Rc7+
{ [%eval 836,12] [%emt 0:00:19] } 34...Kd6
{ [%eval -528,14] [%emt 0:00:38] (Kf6) } 35.Rd7+
{ [%eval -31790,11] [%emt 0:00:23] (Rd7) } 35...Ke5
{ [%eval 31756,14] [%emt 0:00:34] (Ke6) } 36.Qc7+
{ [%eval -31782,12] [%emt 0:00:20] (Qc7) } 36...Ke4
{ [%eval 31758,16] [%emt 0:00:44] (Ke4) } 37.Qf4+
{ [%eval -31780,11] [%emt 0:00:04] (Qf4) } 37...Kd3
{ [%eval 31758,16] [%emt 0:00:00] (Kd3) } 1-0

[Event "41st Amateur D7"]
[Site "ChessGUI4"]
[Date "2013.07.08"]
[Round "20.5"]
[White "ChessKiss 1.7 64-bit"]
[Black "Shallow 1.0 64-bit"]
[Result "1-0"]
[BlackElo "2200"]
[ECO "C43"]
[EventDate "2013.??.??"]
[TimeControl "40/1500:40/1500:40/1500"]
[WhiteElo "2214"]

{ i5 Quad } 1.e4 { [%eval 0,1] [%emt 0:00:00] } 1...e5
{ [%eval 0,1] [%emt 0:00:00] } 2.Nf3 { [%eval 0,1] [%emt 0:00:00] } 2...Nf6
{ [%eval 0,1] [%emt 0:00:00] } 3.d4 { [%eval 0,1] [%emt 0:00:00] } 3...Nxe4
{ [%eval 0,1] [%emt 0:00:00] } 4.Bd3 { [%eval 0, 1] [%emt 0:00:00] } 4...d5
{ [%eval 0,1] [%emt 0:00:00] } 5.Nxe5 { [%eval 0,1] [%emt 0:00:00] } 5...Nd7
{ [%eval 0,1] [%emt 0:00:00] } 6.Nxd7 { [%eval 0,1] [%emt 0:00:00] } 6...Bxd7
{ [%eval 0,1] [%emt 0:00:00] } 7.O-O { [%eval 0,1] [%emt 0:00:00] } 7...Bd6
{ [%eval 0,1] [%emt 0:00:00] } 8.Nc3 { [%eval 0,1] [%emt 0:00:00] } 8...Nxc3
{ [%eval 0, 1] [%emt 0:00:00] } 9.bxc3 { [%eval 67,12] [%emt 0:00:43] }
9...Qh4 { [%eval 7,13] [%emt 0:00:42] (O-O) } 10.Re1+
{ [%eval 95,13] [%emt 0:00:39] (g3) } 10...Kf8
{ [%eval 0,14] [%emt 0:00:42] (Kf8) } 11.g3
{ [%eval 99,14] [%emt 0:00:39] (g3) } 11...Qg4
{ [%eval 4,14] [%emt 0:00:42] (Qg4) } 12.Be2
{ [%eval 92,13] [%emt 0:00:44] (Be2) } 12...Qg6
{ [%eval 0,14] [%emt 0:00:42] (Qf5) } 13.Rb1
{ [%eval 99,13] [%emt 0: 00:40] (Bd3) } 13...Rb8
{ [%eval 4,14] [%emt 0:00:42] (Rb8) } 14.Bd3
{ [%eval 94,13] [%emt 0:00:36] (Bd3) } 14...Qg4
{ [%eval 1,14] [%emt 0:00:42] (Qg4) } 15.Be2
{ [%eval 99,13] [%emt 0:00:35] (Be2) } 15...Qg6
{ [%eval 0,14] [%emt 0:00:42] (Qf5) } 16.Bd3
{ [%eval 94,13] [%emt 0:00:35] (Bd3) } 16...Qg4
{ [%eval 0,15] [%emt 0:00:42] (Qg4) } 17.f3
{ [%eval 88,13] [%emt 0:00:33] (Be2) } 17...Qh3
{ [%eval 19,12] [%emt 0:00:42] (Qh5) } 18.c4
{ [%eval 107,11] [%emt 0:00:32] (Ba6) } 18...dxc4
{ [%eval 17,12] [%emt 0:00: 42] (dxc4) } 19.Bxc4
{ [%eval 84,11] [%emt 0:00:31] (Bxc4) } 19...Kg8
{ [%eval 13,12] [%emt 0:00:42] (h5) } 20.Qd2
{ [%eval 111,10] [%emt 0:00:31] (Be3) } 20...Qf5
{ [%eval 20,11] [%emt 0:00:42] (Qh5) } 21.Qg5
{ [%eval 90,10] [%emt 0:00:30] (Bd3) } 21...Qxg5
{ [%eval 12,13] [%emt 0:00:42] (Qxg5) } 22.Bxg5
{ [%eval 82,12] [%emt 0: 00:29] (Bxg5) } 22...Bf5
{ [%eval 0,12] [%emt 0:01:07] (Kf8) } 23.Bf4
{ [%eval 97,12] [%emt 0:00:28] (Bf4) } 23...Kf8
{ [%eval -13,14] [%emt 0:00:41] (Kf8) } 24.Bxd6+
{ [%eval 87,13] [%emt 0:00:27] (Bxd6) } 24...cxd6
{ [%eval -15,15] [%emt 0:00:41] (cxd6) } 25.Re2
{ [%eval 84,14] [%emt 0:00:26] (Bd5) } 25...f6
{ [%eval -9,12] [%emt 0:00:41] (Bd7) } 26.Bd5
{ [%eval 167,13] [%emt 0:00:21] (Ba6) } 26...b5
{ [%eval -17,14] [%emt 0:00:41] (b5) } 27.Rb3
{ [%eval 199,14] [%emt 0:00:23] (Rb2) } 27...a6
{ [%eval -79,14] [%emt 0:00:41] (b4) } 28.Ra3
{ [%eval 217,14] [%emt 0:00:17] (Rc3) } 28...Bc8
{ [%eval -98,15] [%emt 0:00:41] (Bc8) } 29.Rae3
{ [%eval 232,14] [%emt 0:00:24] (Rae3) } 29...Bd7
{ [%eval -105,15] [%emt 0:00:41] (Bf5) } 30.Re7
{ [%eval 236,13] [%emt 0:00:23] (Re7) } 30...Be8
{ [%eval -107,14] [%emt 0:00:41] (Be8) } 31.Ra7
{ [%eval 251,13] [%emt 0:00:22] (Ra7) } 31...a5
{ [%eval -115,14] [%emt 0:00:41] (Rd8) } 32.Ra6
{ [%eval 259,12] [%emt 0:00:22] (Rxa5) } 32...a4
{ [%eval -83,14] [%emt 0:00: 41] (b4) } 33.Rxd6
{ [%eval 316,13] [%emt 0:00:21] (Rxd6) } 33...b4
{ [%eval -86,14] [%emt 0:00:41] (Bf7) } 34.Bc4
{ [%eval 339,12] [%emt 0:00:21] (Re3) } 34...h5
{ [%eval -81,13] [%emt 0:00:41] (Bg6) } 35.d5
{ [%eval 344,12] [%emt 0:00:20] (h4) } 35...a3
{ [%eval -83,13] [%emt 0:00:41] (h4) } 36.Bd3
{ [%eval 384,12] [%emt 0:00: 19] (h4) } 36...h4
{ [%eval -82,14] [%emt 0:00:41] (Rh6) } 37.g4
{ [%eval 377,13] [%emt 0:00:19] (g4) } 37...h3
{ [%eval -95,14] [%emt 0:00:41] (h3) } 38.Kf2
{ [%eval 386,13] [%emt 0:00:17] (Kf2) } 38...Bf7
{ [%eval -99,14] [%emt 0:00:41] (Rh6) } 39.Kg3
{ [%eval 392,13] [%emt 0:00:18] (Ke3) } 39...Rh6
{ [%eval -95,14] [%emt 0:00:41] (Be8) } 40.Rd7
{ [%eval 393,13] [%emt 0:00:17] (Re3) } 40...g6
{ [%eval -92,13] [%emt 0:00:41] (g5) } 41.Re4
{ [%eval 439,14] [%emt 0:01:00] (c4) } 41...Bg8
{ [%eval -144,14] [%emt 0:00:37] (Kg8) } 42.f4
{ [%eval 456,14] [%emt 0:00:58] (Rd6) } 42...Rh7
{ [%eval -179, 14] [%emt 0:00:37] (Bf7) } 43.Rd6
{ [%eval 512,15] [%emt 0:00:56] (Rd6) } 43...Rf7
{ [%eval -190,14] [%emt 0:00:37] (Kg7) } 44.Kxh3
{ [%eval 498,14] [%emt 0:00:55] (Kxh3) } 44...Bh7
{ [%eval -192,14] [%emt 0:00:37] (Kg7) } 45.Rd4
{ [%eval 525,12] [%emt 0:00:53] (Rc6) } 45...f5
{ [%eval -190,12] [%emt 0:00:37] (g5) } 46.Kh4
{ [%eval 567,14] [%emt 0:00:51] (Rc6) } 46...Rbb7
{ [%eval -215,13] [%emt 0:01:18] (Re7) } 47.Re6
{ [%eval 591,13] [%emt 0:00:50] (Rc6) } 47...Rfd7
{ [%eval -201,13] [%emt 0: 00:36] (fxg4) } 48.Kg5
{ [%eval 607,13] [%emt 0:00:48] (Kg5) } 48...fxg4
{ [%eval -222, 13] [%emt 0:00:36] (fxg4) } 49.Rf6+
{ [%eval 559,12] [%emt 0:00:47] (Kxg4) } 49...Kg7
{ [%eval -192,13] [%emt 0:00:36] (Kg7) } 50.Re6
{ [%eval 553,13] [%emt 0:00:46] (d6) } 50...Kh8
{ [%eval -213,13] [%emt 0:00:36] (Rbc7) } 51.Bxg6
{ [%eval 597,13] [%emt 0:00:44] (Re8) } 51...Bxg6
{ [%eval -204,13] [%emt 0:00:36] (Rb5) } 52.Kxg6
{ [%eval 677,14] [%emt 0:00:43] (Kxg6) } 52...Rg7+
{ [%eval -216,12] [%emt 0:00:36] (Rg7) } 53.Kf5
{ [%eval 676,14] [%emt 0:00:32] (Kf5) } 53...Rb5
{ [%eval -238,13] [%emt 0:01:17] (Rbf7) } 54.Ke4
{ [%eval 692,13] [%emt 0:00:41] (Re5) } 54...Rd7
{ [%eval -260,13] [%emt 0:01:14] (Rd7) } 55.d6
{ [%eval 697,13] [%emt 0:00:40] (d6) } 55...Kg7
{ [%eval -262,13] [%emt 0:00:33] (Kg7) } 56.f5
{ [%eval 693,14] [%emt 0:00:39] (f5) } 56...Kf7
{ [%eval -275,13] [%emt 0:00:34] (Rc5) } 57.Rd2
{ [%eval 694, 14] [%emt 0:00:37] (Rh6) } 57...Rc5
{ [%eval -260,14] [%emt 0:00:33] (Rc5) } 58.Kf4
{ [%eval 800,15] [%emt 0:00:37] (Kf4) } 58...Rc4+
{ [%eval -262,13] [%emt 0:00:33] (Rc4) } 59.Kg5
{ [%eval 794,15] [%emt 0:00:36] (Kg3) } 59...Rc8
{ [%eval -289,13] [%emt 0: 00:33] (Rc8) } 60.Rf6+
{ [%eval 809,14] [%emt 0:00:35] (Kxg4) } 60...Kg7
{ [%eval -289, 13] [%emt 0:00:33] (Kg8) } 61.Rg6+
{ [%eval 792,14] [%emt 0:00:33] (Re6) } 61...Kf7
{ [%eval -290,13] [%emt 0:00:34] (Kf8) } 62.Kxg4
{ [%eval 799,14] [%emt 0:00:32] (Kxg4) } 62...Rh8
{ [%eval -294,12] [%emt 0:00:33] (Re8) } 63.h4
{ [%eval 950,15] [%emt 0:00:30] (Kg5) } 63...Re8
{ [%eval -310,13] [%emt 0:00:33] (Re8) } 64.Kf4
{ [%eval 965,14] [%emt 0:00:31] (Kg5) } 64...Re1
{ [%eval -299,13] [%emt 0:00:33] (Re1) } 65.h5
{ [%eval 960,14] [%emt 0:00:30] (Rh6) } 65...Rf1+
{ [%eval -323,12] [%emt 0:00: 33] (Rf1) } 66.Kg5
{ [%eval 945,13] [%emt 0:00:29] (Kg5) } 66...Rd8
{ [%eval -327,13] [%emt 0:00:33] (Re1) } 67.Rf6+
{ [%eval 985,13] [%emt 0:00:28] (Rf6) } 67...Kg8
{ [%eval -340,12] [%emt 0:00:33] (Kg7) } 68.Kh6
{ [%eval 1648,15] [%emt 0:00:27] (d7) } 68...Rg1
{ [%eval -1224,15] [%emt 0:00:34] (Rg1) } 69.d7
{ [%eval 2200,16] [%emt 0:00:25] (d7) } 69...Rg7
{ [%eval -1283,15] [%emt 0:00:33] (Rg7) } 70.Rg6
{ [%eval 2203,15] [%emt 0:00:26] (Rg6) } 70...Kf7
{ [%eval -2335,14] [%emt 0:00:33] (Kf7) } 71.Rxg7+
{ [%eval 2142,14] [%emt 0:00:25] (Rxg7) } 71...Kf6
{ [%eval 30819,14] [%emt 0:00:19] (Kf6) } 1-0